bitfinex-derivatives/quotes_SOLF0:USTF0_20241216
["timestamp","ask_amount","ask_price","bid_price","bid_amount"]
[1734337275000,9.730762,221.52,221.39,9.730762]
[1734337275196,2.16,221.51,221.39,9.730762]
[1734337275596,2.16,221.55,221.45,11.988862]
[1734337276402,2.2574,221.52,221.45,9.730762]
[1734337276596,2.16,221.55,221.44,2.9595]
[1734337276796,2.16,221.55,221.44,1.4267]
[1734337277106,2.2581,221.46,221.4,2.16]
[1734337277316,2.2581,221.46,221.39,9.730762]
[1734337278699,2.16,221.48,221.37,5.1378]
[1734337278901,9.730762,221.47,221.37,1.445]
[1734337279095,9.730762,221.47,221.33,13.468162]
[1734337279603,9.730762,221.44,221.33,1.5774]
[1734337279899,2.16,221.43,221.33,1.5774]
[1734337280099,2.16,221.43,221.3,9.730762]
[1734337280100,2.259,221.37,221.3,9.730762]
[1734337280301,9.730762,221.44,221.3,9.730762]
[1734337280302,2.16,221.38,221.3,9.730762]
[1734337280505,2.2592,221.35,221.3,9.730762]
[1734337281103,2.2592,221.35,221.27,11.990662]
[1734337282705,11.890762,221.38,221.24,9.730762]
[1734337283201,2.2597,221.31,221.24,9.730762]
[1734337284000,1.3803,221.4,221.24,9.730762]
[1734337284199,2.16,221.39,221.27,9.730762]
[1734337284401,2.16,221.39,221.27,11.990662]
[1734337284700,9.730762,221.41,221.27,9.730762]
[1734337284906,2.16,221.4,221.27,11.890762]
[1734337285306,9.730762,221.41,221.27,11.890762]
[1734337285503,2.16,221.4,221.27,11.890762]
[1734337286003,2.16,221.4,221.27,9.730762]
[1734337286504,2.16,221.4,221.23,1.4603]
[1734337286704,2.16,221.4,221.23,11.191062]
[1734337287103,2.2596,221.31,221.23,11.191062]
[1734337287703,2.16,221.34,221.23,11.191062]
[1734337288804,2.2596,221.31,221.23,11.191062]
[1734337289013,2.16,221.34,221.23,11.191062]
[1734337289905,9.730762,221.39,221.23,11.191062]
[1734337290111,9.730762,221.42,221.3,9.730762]
[1734337290302,2.16,221.41,221.3,9.730762]
[1734337291909,2.2588,221.39,221.3,9.730762]
[1734337293011,2.2588,221.39,221.32,2.2594]
[1734337293511,2.2588,221.39,221.33,1.4527]
[1734337295314,2.2588,221.39,221.33,3.0292]
[1734337295821,2.16,221.41,221.33,3.0292]
[1734337296113,2.16,221.43,221.33,12.759962]
[1734337296316,2.16,221.43,221.34,1.5413]
[1734337296506,5.41839062,221.46,221.34,3.7013]
[1734337296810,2.16,221.45,221.34,3.7013]
[1734337297020,2.2583,221.44,221.34,3.7013]
[1734337297419,7.67649062,221.46,221.39,2.2587]
[1734337297611,2.16,221.47,221.36,9.730762]
[1734337297913,5.4725519,221.48,221.39,9.730762]
[1734337298110,2.2578,221.49,221.41,2.2584]
[1734337298309,2.2578,221.49,221.4,2.16]
[1734337298516,2.16,221.52,221.4,2.16]
[1734337299414,2.2579,221.48,221.42,2.2584]
[1734337299915,2.2579,221.48,221.43,3.0287]
[1734337300620,2.16,221.52,221.43,3.0287]
[1734337301014,9.730762,221.58,221.46,2.2579]
[1734337301210,2.18,221.57,221.46,2.2579]
[1734337301411,2.2573,221.54,221.45,11.910762]
[1734337301713,4.512,221.67,221.45,11.910762]
[1734337301714,5.45425587,221.55,221.45,11.910762]
[1734337301921,7.71135587,221.55,221.45,11.910762]
[1734337302214,5.45425587,221.55,221.45,11.910762]
[1734337302620,2.2573,221.53,221.45,11.910762]
[1734337303022,5.45425587,221.55,221.45,11.910762]
[1734337303611,5.45425587,221.55,221.44,1.568]
[1734337304117,2.2575,221.52,221.45,2.2581]
[1734337304422,2.2575,221.52,221.44,1.568]
[1734337304617,2.18,221.53,221.45,9.730762]
[1734337304932,2.2573,221.54,221.48,2.2578]
[1734337305216,5.45425587,221.55,221.48,2.2578]
[1734337305421,7.71135587,221.55,221.48,2.2578]
[1734337305922,7.71135587,221.55,221.49,2.2577]
[1734337305923,2.2571,221.55,221.49,2.2577]
[1734337306418,2.257,221.56,221.48,9.730762]
[1734337306620,2.257,221.56,221.48,14.168462]
[1734337306813,2.257,221.56,221.48,11.910762]
[1734337307816,2.18,221.58,221.48,11.910762]
[1734337308017,2.2569,221.57,221.48,11.910762]
[1734337308318,2.18,221.61,221.51,9.730762]
[1734337308515,2.18,221.61,221.53,2.2572]
[1734337308516,2.2567,221.6,221.53,2.2572]
[1734337309017,2.2567,221.6,221.54,1.5233]
[1734337309514,2.18,221.61,221.54,1.5233]
[1734337309716,7.50187001,221.61,221.54,1.5233]
[1734337309917,17.23263201,221.61,221.49,2.18]
[1734337310114,17.23263201,221.61,221.48,9.730762]
[1734337310922,2.2574,221.53,221.48,9.730762]
[1734337311221,17.23263201,221.61,221.45,11.254062]
[1734337311222,2.18,221.55,221.45,11.254062]
[1734337311624,2.2574,221.52,221.45,11.254062]
[1734337313117,2.2575,221.51,221.45,11.254062]
[1734337313322,2.18,221.55,221.45,11.254062]
[1734337313724,2.2574,221.52,221.46,2.258]
[1734337313922,2.18,221.55,221.45,11.254062]
[1734337314331,2.2577,221.5,221.45,11.254062]
[1734337315127,2.2575,221.51,221.45,11.254062]
[1734337315421,2.2575,221.51,221.45,13.512162]
[1734337315620,2.18,221.55,221.45,13.512162]
[1734337315821,2.18,221.55,221.45,11.254062]
[1734337316129,2.18,221.55,221.45,1.5233]
[1734337316328,11.910762,221.55,221.45,1.5233]
[1734337317219,9.730762,221.52,221.39,9.730762]
[1734337317527,9.730762,221.52,221.36,11.910762]
[1734337317822,9.730762,221.52,221.37,7.25661564]
[1734337318022,9.730762,221.52,221.38,4.99771564]
[1734337318228,1.3807,221.6,221.4,2.2586]
[1734337318428,9.730762,221.54,221.4,2.2586]
[1734337318627,2.18,221.53,221.4,2.2586]
[1734337318829,2.2581,221.46,221.4,2.2586]
[1734337319534,2.2579,221.47,221.41,2.2585]
[1734337320428,2.2579,221.47,221.4,2.2586]
[1734337321930,2.258,221.46,221.4,2.2586]
[1734337322131,2.258,221.46,221.39,11.989462]
[1734337322428,2.2582,221.44,221.39,9.730762]
[1734337322624,7.54821572,221.48,221.39,9.730762]
[1734337323227,2.2581,221.46,221.4,2.2586]
[1734337323423,2.2581,221.46,221.39,9.730762]
[1734337323626,7.54821572,221.48,221.39,9.730762]
[1734337324130,2.2583,221.44,221.39,9.730762]
[1734337324331,7.54821572,221.48,221.39,9.730762]
[1734337324626,7.54821572,221.48,221.38,2.18]
[1734337324824,2.2586,221.4,221.36,9.730762]
[1734337325022,2.18,221.43,221.33,14.320962]
[1734337325226,2.2587,221.4,221.33,14.320962]
[1734337325528,2.18,221.4,221.33,14.320962]
[1734337326726,2.18,221.4,221.35,2.2591]
[1734337327930,2.18,221.4,221.33,14.320962]
[1734337328426,2.2588,221.39,221.34,2.2592]
[1734337328629,2.2588,221.39,221.33,14.320962]
[1734337328936,2.2588,221.39,221.33,16.580262]
[1734337329635,5.36821572,221.48,221.36,9.730762]
[1734337329845,5.36821572,221.48,221.39,9.730762]
[1734337329846,7.54821572,221.48,221.39,9.730762]
[1734337330133,2.18,221.48,221.42,9.730762]
[1734337330327,4.4378,221.48,221.42,11.989062]
[1734337330524,2.18,221.48,221.42,9.730762]
[1734337330930,2.18,221.48,221.42,11.989162]
[1734337331329,2.2578,221.49,221.42,11.989162]
[1734337331531,2.2579,221.48,221.42,9.730762]
[1734337332231,51.68,221.55,221.42,9.730762]
[1734337332428,2.18,221.54,221.45,9.730762]
[1734337332633,5.33416804,221.53,221.45,9.730762]
[1734337333337,5.33416804,221.53,221.43,2.9688]
[1734337333936,2.2576,221.5,221.43,2.9688]
[1734337334139,5.33416804,221.53,221.43,2.9688]
[1734337335233,2.258,221.46,221.43,2.9688]
[1734337335430,2.18,221.48,221.39,9.730762]
[1734337335839,2.2582,221.45,221.39,11.989462]
[1734337336039,2.18,221.48,221.39,11.989462]
[1734337336040,2.18,221.48,221.39,9.730762]
[1734337336240,2.2583,221.43,221.39,9.730762]
[1734337336831,2.2584,221.42,221.36,9.730762]
[1734337337139,2.18,221.48,221.36,9.730762]
[1734337337732,2.2584,221.43,221.36,9.730762]
[1734337338342,2.258,221.46,221.36,9.730762]
[1734337338637,2.18,221.48,221.33,6.7161]
[1734337338638,2.18,221.48,221.39,9.730762]
[1734337339432,2.18,221.48,221.42,9.730762]
[1734337340132,2.18,221.48,221.43,2.2583]
[1734337340534,2.18,221.48,221.38,2.18]
[1734337340535,2.2581,221.45,221.39,9.730762]
[1734337340938,2.18,221.48,221.38,2.18]
[1734337341141,2.2582,221.45,221.36,11.989762]
[1734337341337,2.18,221.48,221.37,5.02223512]
[1734337341536,2.18,221.48,221.36,9.730762]
[1734337341736,2.2586,221.41,221.36,9.730762]
[1734337343332,2.2586,221.41,221.36,11.989762]
[1734337343534,2.2584,221.42,221.36,11.989762]
[1734337343737,2.18,221.48,221.36,9.730762]
[1734337344336,2.18,221.47,221.39,9.730762]
[1734337344544,2.18,221.48,221.39,9.730762]
[1734337345442,2.2581,221.45,221.4,2.2586]
[1734337345643,2.2581,221.45,221.39,9.730762]
[1734337346942,5.33416804,221.53,221.39,9.730762]
[1734337347141,250.34000897,221.62,221.43,9.730762]
[1734337347142,2.18,221.55,221.43,9.730762]
[1734337347344,9.730762,221.62,221.46,9.730762]
[1734337347641,2.2571,221.55,221.49,2.2577]
[1734337348342,7.55387701,221.56,221.46,9.730762]
[1734337348545,7.55387701,221.56,221.44,4.4713]
[1734337348546,2.18,221.55,221.44,4.4713]
[1734337348745,2.2577,221.5,221.44,4.4713]
[1734337348946,2.18,221.55,221.44,4.4713]
[1734337349148,2.18,221.55,221.46,9.730762]
[1734337349343,2.2572,221.55,221.49,2.2577]
[1734337349946,2.18,221.58,221.47,4.4379]
[1734337350450,5.36380125,221.57,221.47,2.18]
[1734337350744,5.36380125,221.57,221.46,9.730762]
[1734337350944,5.36380125,221.57,221.44,6.6513]
[1734337351141,2.2578,221.49,221.44,6.6513]
[1734337351546,2.2578,221.49,221.44,4.4713]
[1734337354264,2.2578,221.49,221.44,6.7295]
[1734337354749,5.36380125,221.57,221.46,2.2579]
[1734337354951,2.18,221.56,221.46,9.730762]
[1734337355448,2.18,221.56,221.47,2.2579]
[1734337355449,2.2574,221.53,221.47,2.2579]
[1734337356253,2.18,221.56,221.44,4.4713]
[1734337356453,11.910762,221.56,221.44,4.4713]
[1734337356653,9.730762,221.53,221.44,2.9615]
[1734337356951,2.2576,221.51,221.44,2.9615]
[1734337357158,2.18,221.5,221.44,2.9615]
[1734337357554,2.18,221.5,221.39,2.18]
[1734337357555,11.910762,221.5,221.35,2.2591]
[1734337357757,11.910762,221.5,221.36,5.02804647]
[1734337358053,11.910762,221.5,221.37,5.02804647]
[1734337358359,2.2584,221.43,221.36,2.259]
[1734337358553,2.18,221.44,221.36,2.259]
[1734337358754,2.2585,221.42,221.36,2.259]
[1734337360457,2.18,221.44,221.35,9.730762]
[1734337361260,2.18,221.44,221.34,2.9889]
[1734337361763,2.2585,221.41,221.34,5.2482]
[1734337362060,2.18,221.44,221.35,9.730762]
[1734337362656,4.4382,221.44,221.37,2.2589]
[1734337363965,2.2584,221.43,221.37,2.2589]
[1734337364261,2.18,221.44,221.35,9.730762]
[1734337364459,2.18,221.44,221.34,2.9889]
[1734337364666,2.2589,221.38,221.34,2.9889]
[1734337365363,2.18,221.44,221.34,2.9889]
[1734337365665,2.259,221.37,221.34,2.9889]
[1734337366659,9.730762,221.43,221.29,9.730762]
[1734337366660,2.18,221.39,221.29,9.730762]
[1734337367069,2.18,221.39,221.28,2.18]
[1734337367763,2.2593,221.34,221.28,2.18]
[1734337368469,2.2595,221.32,221.27,2.18]
[1734337369461,2.2595,221.32,221.26,11.990862]
[1734337369767,2.2596,221.31,221.26,11.910762]
[1734337370074,2.18,221.38,221.26,11.910762]
[1734337370771,9.730762,221.39,221.26,11.910762]
[1734337370973,2.2593,221.34,221.28,2.2599]
[1734337371568,2.18,221.38,221.27,2.26]
[1734337372164,2.2594,221.33,221.27,2.26]
[1734337372568,2.2595,221.32,221.26,14.170862]
[1734337372768,2.18,221.38,221.26,11.910762]
[1734337373268,2.2594,221.33,221.26,11.910762]
[1734337373873,2.2594,221.33,221.27,2.26]
[1734337374770,2.2595,221.32,221.27,2.26]
[1734337374970,2.18,221.38,221.26,11.910762]
[1734337375178,2.18,221.38,221.28,2.2599]
[1734337375471,2.2594,221.33,221.26,11.910762]
[1734337375870,2.2594,221.33,221.27,2.26]
[1734337376464,2.2594,221.33,221.28,2.2598]
[1734337377073,2.2595,221.32,221.28,2.2598]
[1734337377572,2.2597,221.3,221.26,11.910762]
[1734337377773,2.18,221.38,221.23,9.730762]
[1734337378073,2.18,221.38,221.25,2.18]
[1734337378074,2.2597,221.3,221.25,2.18]
[1734337378771,2.2596,221.32,221.27,2.26]
[1734337381069,2.2596,221.31,221.25,4.4401]
[1734337381274,2.18,221.38,221.25,4.4401]
[1734337381872,2.18,221.38,221.25,2.18]
[1734337382077,2.18,221.38,221.28,6.21515363]
[1734337382078,6.21515363,221.35,221.28,6.21515363]
[1734337382377,6.21515363,221.35,221.25,2.18]
[1734337382378,6.21515363,221.33,221.26,6.21515363]
[1734337382976,2.2601,221.26,221.22,1.5256]
[1734337383875,2.2601,221.26,221.23,6.21515363]
[1734337384074,6.21515363,221.29,221.22,1.5256]
[1734337384075,2.26,221.28,221.22,1.5256]
[1734337385282,2.18,221.29,221.22,1.5256]
[1734337385479,2.26,221.27,221.22,1.5256]
[1734337386382,2.18,221.29,221.22,1.5256]
[1734337386982,2.2603,221.25,221.22,1.5256]
[1734337387183,2.18,221.29,221.22,1.5256]
[1734337387885,2.2602,221.25,221.22,1.5256]
[1734337388079,2.2602,221.25,221.19,11.97628212]
[1734337390085,5.37469513,221.31,221.19,9.71558212]
[1734337390283,2.18,221.3,221.2,4.4867]
[1734337390480,11.89558212,221.33,221.21,2.18]
[1734337390686,5.40129715,221.32,221.22,9.71558212]
[1734337391179,2.2599,221.28,221.22,11.97598212]
[1734337391375,2.2599,221.28,221.2,4.4867]
[1734337391376,2.18,221.28,221.2,4.4867]
[1734337391883,2.2604,221.24,221.2,4.4867]
[1734337392177,2.18,221.28,221.2,4.4867]
[1734337394384,2.2603,221.25,221.2,4.4867]
[1734337394577,2.18,221.28,221.2,1.4248]
[1734337394776,9.71558212,221.27,221.11,1.5733]
[1734337394980,2.2608,221.19,221.12,5.00130122]
[1734337395281,4.4408,221.19,221.11,13.55038212]
[1734337395690,4.4408,221.19,221.11,11.28888212]
[1734337395983,2.2605,221.22,221.15,2.2612]
[1734337396283,2.18,221.22,221.11,11.28888212]
[1734337397377,2.2609,221.18,221.11,13.55038212]
[1734337397789,2.18,221.21,221.14,9.71558212]
[1734337397990,2.18,221.22,221.14,9.71558212]
[1734337398289,2.18,221.23,221.15,1.4751]
[1734337398478,2.18,221.22,221.15,1.4751]
[1734337398678,2.18,221.22,221.16,2.2611]
[1734337398883,9.71558212,221.28,221.15,1.4751]
[1734337399089,2.18,221.27,221.16,1.4245]
[1734337399587,2.18,221.27,221.17,2.2609]
[1734337400289,2.2603,221.24,221.17,2.2609]
[1734337400490,4.4403,221.24,221.17,2.2609]
[1734337400891,2.2605,221.22,221.16,1.4245]
[1734337401089,9.71558212,221.28,221.16,1.4245]
[1734337401293,2.18,221.27,221.16,1.4245]
[1734337401989,2.2604,221.24,221.18,2.2609]
[1734337402189,5.40129715,221.32,221.17,9.71558212]
[1734337402391,5.40129715,221.32,221.2,9.71558212]
[1734337402392,17.29687927,221.32,221.2,9.71558212]
[1734337402694,17.29687927,221.32,221.21,1.4275]
[1734337403194,17.29687927,221.32,221.21,3.688]
[1734337403392,17.29687927,221.32,221.21,1.4275]
[1734337405297,2.2601,221.27,221.21,1.4275]
[1734337405594,2.2601,221.27,221.21,3.688]
[1734337405793,2.2598,221.3,221.21,1.4275]
[1734337405989,6.21844115,221.29,221.22,6.21844115]
[1734337406589,2.2599,221.28,221.22,8.47894115]
[1734337407190,6.21844115,221.29,221.22,6.21844115]
[1734337407495,2.2597,221.3,221.24,2.2603]
[1734337407690,6.21844115,221.32,221.24,6.21844115]
[1734337407889,7.50807684,221.34,221.24,8.39844115]
[1734337408088,6.21844115,221.32,221.25,1.5672]
[1734337408791,6.21844115,221.3,221.25,1.5672]
[1734337408990,6.21844115,221.29,221.25,1.5672]
[1734337409591,2.26,221.28,221.25,1.5672]
[1734337409791,6.21844115,221.29,221.25,1.5672]
[1734337409992,7.50807684,221.34,221.25,1.5672]
[1734337410194,6.21844115,221.29,221.25,1.5672]
[1734337410799,2.2599,221.28,221.25,1.5672]
[1734337412195,2.26,221.27,221.25,1.5672]
[1734337412791,7.50807684,221.34,221.25,1.5672]
[1734337412792,2.2599,221.28,221.25,1.5672]
[1734337415898,2.2598,221.29,221.25,1.5672]
[1734337416200,6.21844115,221.3,221.25,1.5672]
[1734337416501,2.2599,221.28,221.25,1.5672]
[1734337416696,6.21844115,221.3,221.25,1.5672]
[1734337417097,8.39844115,221.32,221.25,1.5672]
[1734337417401,6.21844115,221.33,221.26,6.21844115]
[1734337418397,8.47784115,221.33,221.27,2.2599]
[1734337419294,37.8766223,221.46,221.28,2.18]
[1734337419495,5.44561877,221.46,221.4,6.21844115]
[1734337419694,6.21844115,221.47,221.4,6.21844115]
[1734337420002,11.65646037,221.47,221.4,6.21844115]
[1734337420303,11.65646037,221.47,221.38,8.39844115]
[1734337420498,2.2581,221.45,221.38,8.39844115]
[1734337421098,7.69601922,221.47,221.38,10.65724115]
[1734337421298,11.65646037,221.47,221.38,10.65724115]
[1734337422202,2.2581,221.45,221.38,8.47724115]
[1734337422599,2.2582,221.44,221.36,4.519]
[1734337422801,2.2582,221.44,221.37,6.21844115]
[1734337424102,6.21844115,221.43,221.36,2.259]
[1734337424306,8.47684115,221.43,221.36,10.73744115]
[1734337425603,2.2586,221.41,221.36,6.21844115]
[1734337425902,6.21844115,221.41,221.27,1.4765]
[1734337426105,6.21844115,221.41,221.34,6.21844115]
[1734337427211,2.2588,221.39,221.34,6.21844115]
[1734337428810,1.4327,221.44,221.36,6.21844115]
[1734337429110,6.21844115,221.43,221.36,6.21844115]
[1734337430401,2.2586,221.41,221.36,6.21844115]
[1734337431208,2.2589,221.38,221.34,6.21844115]
[1734337434012,6.21844115,221.44,221.36,8.47744115]
[1734337435111,6.21844115,221.44,221.38,6.21844115]
[1734337435301,2.26,221.45,221.4,6.21844115]
[1734337435302,2.2581,221.45,221.4,6.21844115]
[1734337437505,5.43801922,221.47,221.4,6.21844115]
[1734337437713,5.43801922,221.47,221.42,6.21844115]
[1734337438012,5.43801922,221.47,221.37,2.26]
[1734337438013,11.65646037,221.47,221.4,6.21844115]
[1734337438510,2.2583,221.44,221.4,6.21844115]
[1734337438715,2.2583,221.44,221.38,2.2588]
[1734337438716,2.2583,221.44,221.42,6.21844115]
[1734337439414,2.2583,221.44,221.4,6.21844115]
[1734337439609,11.65646037,221.47,221.35,1.4792]
[1734337439610,6.21844115,221.45,221.35,1.4792]
[1734337439814,6.21844115,221.43,221.36,6.21844115]
[1734337440013,8.47844115,221.43,221.36,6.21844115]
[1734337440211,2.2587,221.4,221.36,6.21844115]
[1734337440417,8.47844115,221.43,221.36,6.21844115]
[1734337441012,8.47844115,221.43,221.32,2.26]
[1734337441216,8.47844115,221.43,221.28,1.5674]
[1734337441217,6.21844115,221.41,221.33,6.21844115]
[1734337442512,2.259,221.37,221.33,6.21844115]
[1734337443313,6.21844115,221.41,221.33,6.21844115]
[1734337443515,2.259,221.37,221.33,6.21844115]
[1734337443914,2.2589,221.38,221.35,6.21844115]
[1734337445717,2.259,221.37,221.35,6.21844115]
[1734337446819,2.2589,221.38,221.35,6.21844115]
[1734337447919,6.21844115,221.41,221.35,6.21844115]
[1734337448120,6.21844115,221.39,221.3,2.26]
[1734337448321,6.21844115,221.37,221.3,8.47844115]
[1734337448714,6.21844115,221.37,221.1,34.89135331]
[1734337448912,6.21844115,221.37,221.26,5.01259681]
[1734337449115,6.21844115,221.37,221.29,6.21844115]
[1734337449319,2.2595,221.32,221.29,6.21844115]
[1734337450317,2.2596,221.31,221.27,6.21844115]
[1734337450722,6.21844115,221.33,221.27,6.21844115]
[1734337450919,2.2597,221.3,221.27,6.21844115]
[1734337453318,2.2596,221.31,221.27,6.21844115]
[1734337453721,6.21844115,221.35,221.25,33.30232061]
[1734337453920,2.2601,221.27,221.26,6.21844115]
[1734337454523,2.2599,221.28,221.26,6.21844115]
[1734337455420,2.2598,221.29,221.26,6.21844115]
[1734337456119,2.2596,221.31,221.26,6.21844115]
[1734337456522,2.22,221.33,221.28,6.21844115]
[1734337456717,2.22,221.33,221.3,6.21844115]
[1734337456914,5.49367521,221.36,221.3,6.21844115]
[1734337457115,3.0485,221.41,221.32,6.21844115]
[1734337457315,6.21844115,221.38,221.32,6.21844115]
[1734337457622,7.78034115,221.42,221.34,6.21844115]
[1734337457821,6.21844115,221.4,221.34,6.21844115]
[1734337458523,1.44,221.48,221.34,6.21844115]
[1734337458825,2.2587,221.4,221.34,6.21844115]
[1734337459325,7.77372683,221.4,221.34,6.21844115]
[1734337459825,2.2587,221.4,221.34,6.21844115]
[1734337460225,2.22,221.47,221.36,6.21844115]
[1734337460418,2.2585,221.42,221.36,6.21844115]
[1734337460618,6.21844115,221.43,221.36,6.21844115]
[1734337460924,2.2589,221.38,221.35,6.21844115]
[1734337461624,2.2589,221.38,221.33,2.22]
[1734337461821,2.2589,221.38,221.35,6.21844115]
[1734337462120,5.37774802,221.43,221.37,6.21844115]
[1734337462425,8.43844115,221.47,221.39,6.21844115]
[1734337462626,2.22,221.48,221.41,6.21844115]
[1734337462828,8.43844115,221.48,221.41,6.21844115]
[1734337464430,2.258,221.46,221.41,6.21844115]
[1734337464730,6.21844115,221.48,221.41,6.21844115]
[1734337465222,5.5016424,221.46,221.41,6.21844115]
[1734337465428,2.2582,221.45,221.41,6.21844115]
[1734337465731,2.2582,221.45,221.33,1.5357]
[1734337465732,6.21844115,221.44,221.36,2.22]
[1734337465931,6.21844115,221.44,221.37,6.21844115]
[1734337467635,2.2585,221.42,221.37,6.21844115]
[1734337468224,6.21844115,221.44,221.37,6.21844115]
[1734337468534,2.2586,221.41,221.37,6.21844115]
[1734337469733,6.21844115,221.44,221.34,2.22]
[1734337470031,11.72008355,221.46,221.34,2.22]
[1734337470232,2.2585,221.42,221.38,6.21844115]
[1734337473140,2.2585,221.41,221.34,4.4793]
[1734337473440,2.2585,221.41,221.38,6.21844115]
[1734337475339,2.2585,221.41,221.34,4.4793]
[1734337475540,2.2585,221.41,221.38,6.21844115]
[1734337475740,2.2585,221.42,221.38,6.21844115]
[1734337476340,2.2585,221.42,221.34,2.22]
[1734337476341,2.2585,221.42,221.4,6.21844115]
[1734337476532,2.22,221.49,221.4,6.21844115]
[1734337476741,9.80354046,221.56,221.46,6.21844115]
[1734337476935,6.21844115,221.55,221.46,6.21844115]
[1734337477437,2.2577,221.49,221.46,6.21844115]
[1734337478138,8.43844115,221.53,221.46,6.21844115]
[1734337479242,5.45859107,221.5,221.46,6.21844115]
[1734337479445,2.2579,221.48,221.46,6.21844115]
[1734337479838,8.43844115,221.53,221.46,6.21844115]
[1734337480042,1.4517,221.59,221.46,6.21844115]
[1734337480344,2.22,221.58,221.46,6.21844115]
[1734337480545,2.2575,221.52,221.46,6.21844115]
[1734337480741,2.2,221.53,221.46,6.21844115]
[1734337480941,2.2,221.53,221.43,1.4474]
[1734337481247,6.21844115,221.48,221.41,6.21844115]
[1734337481447,8.41844115,221.48,221.41,6.21844115]
[1734337481748,8.41844115,221.48,221.4,7.69904115]
[1734337481941,6.21844115,221.46,221.4,6.21844115]
[1734337482138,6.21844115,221.46,221.38,6.21844115]
[1734337482344,6.21844115,221.44,221.38,6.21844115]
[1734337483144,6.21844115,221.44,221.35,2.2]
[1734337483145,2.2,221.48,221.4,6.21844115]
[1734337483648,6.21844115,221.47,221.4,6.21844115]
[1734337483947,2.2583,221.44,221.4,6.21844115]
[1734337484148,6.21844115,221.49,221.42,6.21844115]
[1734337484355,2.2,221.49,221.44,6.21844115]
[1734337484652,13.80762037,221.51,221.44,6.21844115]
[1734337484849,13.80762037,221.51,221.46,6.21844115]
[1734337484850,7.58917922,221.51,221.46,6.21844115]
[1734337485245,7.58917922,221.51,221.41,5.3686]
[1734337485445,7.58917922,221.51,221.46,6.21844115]
[1734337485856,2.2579,221.48,221.46,6.21844115]
[1734337488045,7.58917922,221.51,221.46,6.21844115]
[1734337488046,4.4575,221.51,221.46,6.21844115]
[1734337488259,4.4575,221.51,221.44,2.2582]
[1734337488260,2.2,221.56,221.49,6.21844115]
[1734337488753,2.2574,221.53,221.49,6.21844115]
[1734337489258,2.2571,221.55,221.51,6.21844115]
[1734337490148,8.41844115,221.58,221.44,4.4582]
[1734337490149,2.2574,221.52,221.44,4.4582]
[1734337490357,2.2574,221.52,221.49,6.21844115]
[1734337490857,2.2576,221.51,221.44,2.2]
[1734337491057,2.2,221.58,221.42,1.4914]
[1734337491058,6.21844115,221.54,221.42,1.4914]
[1734337491249,297.50710897,221.71,221.47,6.21844115]
[1734337491554,6.21844115,221.64,221.56,6.21844115]
[1734337492253,2.49195,221.6,221.56,6.21844115]
[1734337493752,0.23535,221.6,221.56,6.21844115]
[1734337493955,0.23535,221.6,221.54,11.94333218]
[1734337494159,0.23535,221.6,221.54,9.68623218]
[1734337494355,0.23535,221.6,221.54,11.88623218]
[1734337495452,2.2568,221.59,221.54,11.88623218]
[1734337497359,2.2568,221.58,221.54,11.88623218]
[1734337500858,2.2565,221.61,221.54,11.88623218]
[1734337503462,2.2566,221.6,221.54,11.88623218]
[1734337503658,2.2566,221.6,221.54,9.68623218]
[1734337503966,7.54572517,221.63,221.54,9.68623218]
[1734337504359,2.2569,221.57,221.52,1.5608]
[1734337504564,7.54572517,221.63,221.52,1.5608]
[1734337504763,7.54572517,221.63,221.29,15.07825725]
[1734337504963,2.2575,221.52,221.46,9.68623218]
[1734337505665,2.2576,221.51,221.46,9.68623218]
[1734337506966,2.2578,221.48,221.46,9.68623218]
[1734337507162,2.18,221.55,221.37,1.4737]